bitfinex/quotes_SOLUSD_20220109
["timestamp","ask_amount","ask_price","bid_price","bid_amount"]
[1641722728588,3.0,139.06,138.98,61.89604201]
[1641722728991,36.40080299,139.06,138.98,61.89604201]
[1641722729587,36.40080299,139.06,138.98,51.09994201]
[1641722731388,36.40080299,139.06,138.98,22.9604]
[1641722731589,36.47080299,139.06,138.97,23.5532]
[1641722731788,10.38,139.05,138.96,86.762]
[1641722731989,10.38,139.05,138.96,75.9642]
[1641722731990,10.7986,139.02,138.96,75.9642]
[1641722732191,10.7986,139.02,138.94,23.7155]
[1641722732389,10.7986,139.02,138.95,30.67315903]
[1641722732589,3.0,139.01,138.95,30.67315903]
[1641722732991,3.0,139.0,138.95,30.67315903]
[1641722733293,10.798,139.02,138.95,30.67315903]
[1641722734794,10.798,139.02,138.95,41.47175903]
[1641722736200,12.82998711,139.03,138.95,41.47175903]
[1641722736398,2.03278711,139.03,138.95,41.47175903]
[1641722736899,2.03278711,139.03,138.99,10.7932]
[1641722737705,2.03278711,139.04,138.99,36.01617383]
[1641722737900,2.03278711,139.04,138.99,60.18397383]
[1641722738925,2.03278711,139.05,138.99,60.18397383]
[1641722740124,2.03278711,139.04,138.99,60.18397383]
[1641722741625,2.03278711,139.05,138.99,60.18397383]
[1641722741824,2.03278711,139.05,138.99,61.83742696]
[1641722742124,0.00278711,139.05,139.0,3.0]
[1641722742325,4.08167726,139.08,139.02,10.7905]
[1641722742524,4.08167726,139.08,139.03,29.56392358]
[1641722742723,4.08167726,139.08,139.03,40.19392358]
[1641722742925,0.00167726,139.08,139.03,41.84737671]
[1641722743126,0.00167726,139.12,139.04,1.72345313]
[1641722743325,0.00167726,139.12,139.08,10.7855]
[1641722744026,16.46798592,139.17,139.08,10.7855]
[1641722744225,16.46798592,139.17,139.08,34.005]
[1641722744425,40.53036448,139.17,139.08,58.01642224]
[1641722744925,51.31736448,139.17,139.08,58.01642224]
[1641722745326,6.08798592,139.17,139.08,58.01642224]
[1641722745538,6.08798592,139.17,139.09,36.1996]
[1641722745936,6.08798592,139.17,139.09,35.9496]
[1641722746140,74.059,139.19,139.09,35.9496]
[1641722747838,84.8444,139.19,139.09,35.9496]
[1641722748137,84.8444,139.19,139.08,47.23092224]
[1641722748440,84.8444,139.19,139.09,0.25]
[1641722748640,3.0,139.18,139.09,0.25]
[1641722749337,13.786,139.18,139.11,10.7858]
[1641722749537,13.786,139.18,139.11,36.42212863]
[1641722749939,74.059,139.19,139.11,36.42212863]
[1641722750140,3.0,139.18,139.11,36.42212863]
[1641722750341,38.20000821,139.2,139.11,36.42212863]
[1641722751541,10.38,139.2,139.11,36.42212863]
[1641722752940,21.1644,139.2,139.11,36.42212863]
[1641722753442,47.99512574,139.2,139.1,24.4389]
[1641722753645,0.07,139.18,139.1,24.4389]
[1641722753942,10.7915,139.11,139.03,10.38]
[1641722754144,10.7915,139.11,139.07,75.657]
[1641722754343,10.38,139.17,139.03,33.8481]
[1641722754544,63.40978384,139.15,139.05,10.7905]
[1641722755144,10.7907,139.12,139.07,31.03216605]
[1641722756249,10.7899,139.13,139.07,31.03216605]
[1641722756646,46.3449,139.17,139.07,31.03216605]
[1641722756853,46.3449,139.17,139.08,23.7299]
[1641722757053,31.25403106,139.16,139.08,23.7299]
[1641722757456,10.79,139.13,139.08,23.7299]
[1641722757653,31.25403106,139.16,139.08,23.7299]
[1641722758360,3.0,139.15,139.08,23.7299]
[1641722759860,38.9708,139.15,139.08,23.7299]
[1641722760559,10.7913,139.12,139.08,23.7299]
[1641722760761,10.7913,139.12,139.07,31.03216605]
[1641722761464,10.7913,139.12,139.05,33.3354]
[1641722761760,10.7913,139.12,139.05,22.9554]
[1641722761961,10.7913,139.12,139.05,33.7457]
[1641722762560,10.7913,139.12,139.05,60.82128343]
[1641722762961,10.79,139.13,139.05,60.82128343]
[1641722763363,31.25403106,139.16,139.05,83.35918343]
[1641722764684,3.0,139.15,139.05,83.35918343]
[1641722764885,10.7891,139.14,139.05,83.35918343]
[1641722765890,23.74267127,139.13,139.05,83.35918343]
[1641722766094,34.53267127,139.13,139.05,83.35918343]
[1641722766494,10.79,139.13,139.05,83.35918343]
[1641722767505,41.81799888,139.13,139.05,83.35918343]
[1641722767905,41.81799888,139.13,139.05,56.2836]
[1641722768129,31.02799888,139.13,139.05,56.2836]
[1641722768329,1.80859919,139.15,139.05,56.2836]
[1641722768529,12.18859919,139.15,139.05,56.2836]
[1641722768735,10.38,139.15,139.05,56.2836]
[1641722769335,49.61831377,139.15,139.05,84.99940127]
[1641722769538,3.0,139.14,139.03,10.7919]
[1641722769737,10.38,139.13,139.01,97.1796]
[1641722770545,23.3232328,139.12,139.02,27.29480519]
[1641722770946,29.20574705,139.09,139.01,97.1796]
[1641722771775,23.9025,139.12,139.01,97.1796]
[1641722771948,10.7932,139.09,139.01,107.9737]
[1641722772150,10.7932,139.09,139.01,97.1796]
[1641722772349,10.7932,139.09,139.01,98.83305313]
[1641722772750,10.7932,139.09,139.01,126.01908387]
[1641722773151,3.0,139.08,139.01,126.01908387]
[1641722773451,13.7938,139.08,139.01,136.81268387]
[1641722773652,10.7938,139.08,139.01,136.81268387]
[1641722773853,3.0,139.07,139.01,126.01908387]
[1641722774053,24.43820268,139.11,139.01,126.01908387]
[1641722774253,3.0,139.1,139.01,136.81308387]
[1641722775755,10.7935,139.09,139.01,136.81308387]
[1641722775955,3.0,139.1,139.01,136.81308387]
[1641722776558,23.9025,139.12,139.01,136.81308387]
[1641722776756,34.2825,139.12,139.01,136.81308387]
[1641722777356,45.0737,139.12,139.01,136.81308387]
[1641722780290,3.0,139.11,139.02,0.25]
[1641722780489,74.3786,139.13,139.02,0.25]
[1641722780696,74.3786,139.13,139.02,1.90345313]
[1641722780895,74.3786,139.13,139.03,23.0939]
[1641722781095,74.3786,139.13,139.04,23.29444667]
[1641722781297,74.3786,139.13,139.04,23.54444667]
[1641722782495,74.3786,139.13,139.07,10.7888]
[1641722782698,169.21592426,139.14,139.07,10.7888]
[1641722782896,169.21592426,139.14,139.05,23.5668]
[1641722783996,3.0,139.13,139.05,23.5668]
[1641722784396,10.7917,139.11,139.05,23.5668]
[1641722786096,23.5887614,139.11,139.05,34.3576]
[1641722787600,3.0,139.13,139.05,34.3576]
[1641722788500,125.22863661,139.14,139.05,34.3576]
[1641722788699,125.22863661,139.14,139.07,30.00720619]
[1641722788900,125.22863661,139.14,139.1,10.7869]
[1641722789101,125.22863661,139.14,139.1,36.67582667]
[1641722789700,125.22863661,139.14,139.1,10.7869]
[1641722790104,125.22863661,139.14,139.06,78.6815]
[1641722790300,125.22863661,139.14,139.08,0.25]
[1641722791103,125.22863661,139.14,139.1,10.7866]
[1641722792801,149.81767909,139.14,139.09,10.7876]
[1641722793203,149.81767909,139.14,139.07,24.1197]
[1641722793603,160.60647909,139.14,139.07,24.1197]
[1641722793803,10.38,139.13,139.03,3.3201854]
[1641722794003,10.38,139.13,139.03,27.5638854]
[1641722794611,10.7909,139.11,139.03,27.5638854]
[1641722794817,10.38,139.13,139.03,27.5638854]
[1641722795019,10.38,139.13,139.03,38.3562854]
[1641722795219,10.38,139.13,139.03,14.1125854]
[1641722795416,10.38,139.13,139.03,3.3201854]
[1641722795917,10.7932,139.08,139.03,3.3201854]
[1641722796520,3.0,139.07,139.03,3.3201854]
[1641722796926,10.7957,139.05,139.03,3.3201854]
[1641722797425,6.06439994,139.04,139.03,3.3201854]
[1641722798040,16.86189994,139.04,139.03,3.3201854]
[1641722798845,25.83817294,139.04,139.03,3.3201854]
[1641722799045,25.83817294,139.04,138.99,1.0259855]
[1641722799345,16.86189994,139.04,138.99,1.0259855]
[1641722799953,45.56288644,139.04,138.99,1.0259855]
[1641722800554,16.86189994,139.04,138.99,1.0259855]
[1641722800756,6.06439994,139.04,138.99,1.0259855]
[1641722801787,6.06439994,139.04,138.99,11.8214855]
[1641722801960,10.7949,139.06,138.99,11.8214855]
[1641722802960,10.7949,139.06,138.99,1.0259855]
[1641722803759,3.0,139.05,138.99,1.0259855]
[1641722803960,10.7967,139.04,138.99,1.0259855]
[1641722804360,46.3716,139.07,138.99,1.0259855]
[1641722804760,10.38,139.07,139.0,29.12468999]
[1641722804961,21.1741,139.07,139.0,29.12468999]
[1641722805760,21.1741,139.07,139.0,39.91878999]
[1641722806261,21.1741,139.07,139.0,10.7941]
[1641722806661,21.1741,139.07,138.99,1.0259855]
[1641722808365,3.0,139.06,138.99,1.0259855]
[1641722808562,13.38,139.06,138.99,1.0259855]
[1641722808763,10.7977,139.03,138.99,1.0259855]
[1641722809594,28.90989957,139.05,138.99,1.0259855]
[1641722809798,39.70569957,139.05,138.99,1.0259855]
[1641722810097,28.90989957,139.05,138.99,1.0259855]
[1641722810500,28.90989957,139.05,138.99,11.8215855]
[1641722811101,28.90989957,139.05,138.99,10.7956]
[1641722812401,21.1752,139.06,138.99,10.7956]
[1641722812600,3.0,139.05,138.99,10.7956]
[1641722812900,3.0,139.05,138.97,10.7968]
[1641722813102,3.0,139.05,138.96,45.24399085]
[1641722813400,27.40075024,139.05,138.96,45.24399085]
[1641722814801,38.19625024,139.05,138.99,10.7956]
[1641722815300,27.40075024,139.05,138.99,10.7956]
[1641722816101,3.0,139.05,138.99,10.7956]
[1641722817903,13.7959,139.05,138.98,35.741]
[1641722818103,13.7959,139.05,138.98,24.9448]
[1641722819007,23.71167333,139.04,138.98,24.9448]
[1641722819206,23.71167333,139.04,138.98,35.7409]
[1641722819407,10.38,139.06,138.98,35.7409]
[1641722820410,10.38,139.06,138.99,23.18557453]
[1641722820610,10.38,139.06,139.01,10.794]
[1641722820812,10.38,139.06,138.99,23.18557453]
[1641722821815,21.175,139.06,138.99,10.795]
[1641722822014,3.0,139.05,138.98,24.9448]
[1641722823218,27.00893274,139.05,138.98,24.9448]
[1641722823618,48.18473274,139.05,138.98,24.9448]
[1641722825619,48.18473274,139.05,138.96,10.7978]
[1641722832351,48.18473274,139.05,138.95,112.4042]
[1641722833353,48.18473274,139.05,138.94,10.7992]
[1641722833651,10.799,139.01,138.94,10.7992]
[1641722833854,41.03523208,139.01,138.94,10.7992]
[1641722834055,41.03523208,139.01,138.94,35.94975081]
[1641722834252,10.799,139.01,138.94,35.94975081]
[1641722836658,3.0,139.0,138.94,35.94975081]
[1641722836855,10.799,139.01,138.94,35.94975081]
[1641722837256,10.799,139.01,138.94,10.7992]
[1641722837458,10.38,139.0,138.92,74.8838]
[1641722837659,10.801,138.98,138.92,74.8838]
[1641722837859,10.38,139.0,138.92,74.8838]
[1641722838257,10.38,139.0,138.93,30.33792843]
[1641722838258,3.0,138.99,138.93,30.33792843]
[1641722838858,10.38,139.02,138.93,30.33792843]
[1641722839059,3.0,139.01,138.94,22.6401]
[1641722839658,25.16032216,139.0,138.94,22.6401]
[1641722840561,10.7996,138.99,138.94,22.6401]
[1641722842670,21.1796,138.99,138.93,10.7998]
[1641722843968,21.1796,138.99,138.92,85.6846]
[1641722844373,52.93971522,138.99,138.92,85.6846]
[1641722844570,3.0,138.98,138.92,85.6846]
[1641722846172,13.38,138.98,138.92,85.6846]
[1641722847102,10.38,138.98,138.92,85.6846]
[1641722847600,10.38,138.98,138.93,3.25]
[1641722847800,145.08256849,139.0,138.93,3.25]
[1641722848001,10.38,139.05,138.94,0.07]
[1641722848201,10.38,139.05,138.94,35.03979178]
[1641722848401,10.38,139.05,138.95,0.25]
[1641722848601,10.38,139.05,138.95,3.25]
[1641722848800,10.38,139.05,138.96,22.5252]
[1641722849001,10.38,139.05,139.01,10.7941]
[1641722850603,39.67488096,139.08,139.01,10.7941]
[1641722850803,39.67488096,139.08,139.01,34.6283]
[1641722851005,3.0,139.07,139.01,34.6283]
[1641722851802,13.7936,139.07,139.01,34.6283]
[1641722854708,13.7936,139.07,139.01,23.8342]
[1641722855107,13.7936,139.07,139.0,10.7947]
[1641722855606,10.7952,139.05,139.0,10.7947]
[1641722856008,10.7952,139.05,138.99,10.7954]
[1641722856407,10.38,139.06,138.99,10.7954]
[1641722857512,4.05342175,139.05,138.99,10.7954]
[1641722858614,8.10549655,139.05,138.99,10.7954]
[1641722859613,3.0,139.04,138.99,10.7954]
[1641722860213,25.2262748,139.06,138.99,10.7954]
[1641722860413,3.0,139.05,138.99,10.7954]
[1641722861413,13.7947,139.05,138.99,10.7954]
[1641722861816,13.7947,139.05,138.98,35.6844]
[1641722862513,2.01228921,139.03,138.98,24.8882]
[1641722862713,12.80908921,139.03,138.98,24.8882]
[1641722863315,2.01228921,139.03,138.98,35.684]
[1641722863517,5.01228921,139.02,138.98,10.7958]
[1641722863718,2.01228921,139.02,138.98,10.7958]
[1641722864315,33.93460955,139.02,138.97,1.0004624]
[1641722865119,44.73190955,139.02,138.97,1.0004624]
[1641722865317,2.01228921,139.01,138.97,1.0004624]
[1641722866718,10.7992,138.99,138.97,1.0004624]
[1641722866919,6.06439994,138.98,138.97,1.0004624]
[1641722867319,6.06439994,138.98,138.97,25.0004624]
[1641722867719,16.86439994,138.98,138.97,25.0004624]
[1641722867919,16.86439994,138.98,138.97,1.0004624]
[1641722868520,19.86439994,138.98,138.97,1.0004624]
[1641722869221,19.86439994,138.98,138.97,35.0004624]
[1641722869421,9.06439994,138.98,138.97,35.0004624]
[1641722869621,6.06439994,138.98,138.97,35.0004624]
[1641722869821,9.06439994,138.98,138.97,35.0004624]
[1641722870025,3.03219997,138.98,138.97,35.0004624]
[1641722870223,2.01228921,139.0,138.97,35.0004624]
[1641722871025,2.01228921,139.0,138.94,1.0259855]
[1641722871026,1.06785912,138.97,138.94,1.0259855]
[1641722871426,7.35885912,138.97,138.94,1.0259855]
[1641722871830,10.38,138.96,138.94,1.0259855]
[1641722872028,10.38,138.96,138.89,2.03720914]
[1641722872227,10.8086,138.93,138.89,2.03720914]
[1641722872425,18.5696,138.93,138.89,2.03720914]
[1641722872629,18.5696,138.93,138.84,2.03720914]
[1641722873458,10.38,138.92,138.84,2.03720914]
[1641722873657,10.8101,138.88,138.84,2.03720914]
[1641722874059,10.8101,138.88,138.83,121.1231]
[1641722874459,10.8101,138.88,138.83,48.7395]
[1641722875267,3.0,138.87,138.83,48.7395]
[1641722875662,3.0,138.87,138.83,24.8599]
[1641722876263,13.8095,138.87,138.83,24.8599]
[1641722876463,3.0,138.87,138.83,24.8599]
[1641722876865,5.998,138.87,138.83,24.8599]
[1641722877564,16.8076,138.87,138.83,24.8599]
[1641722877965,10.38,138.88,138.83,24.8599]
[1641722878166,29.95694023,138.89,138.83,24.8599]
[1641722878966,29.95694023,138.89,138.83,35.6677]
[1641722887210,10.38,138.88,138.8,76.3321]
[1641722887407,10.38,138.88,138.82,10.8084]
[1641722888808,24.1514,138.93,138.83,76.0]
[1641722889009,10.38,138.92,138.87,10.8001]
[1641722889208,8.9661,138.91,138.87,10.8001]
[1641722889409,19.3461,138.91,138.87,10.8001]
[1641722889610,10.38,138.91,138.87,10.8001]
[1641722894517,10.38,138.91,138.89,10.7999]
[1641722896416,88.8755,138.95,138.89,10.7999]
[1641722896618,10.38,138.95,138.89,10.7999]
[1641722896820,12.30420326,138.95,138.89,10.7999]
[1641722897419,23.10660326,138.95,138.89,10.7999]
[1641722900325,3.0,138.94,138.89,10.7999]
[1641722900824,1.92420326,138.93,138.89,10.7999]
[1641722906929,12.72800326,138.93,138.88,10.8038]
[1641722907933,1.92420326,138.92,138.88,10.8038]
[1641722908131,12.72880326,138.92,138.87,10.8046]
[1641722908331,1.92420326,138.92,138.87,10.8046]
[1641722908531,3.0,138.91,138.87,10.8046]
[1641722908733,1.92420326,138.93,138.87,10.8046]
[1641722911159,1.92420326,138.92,138.87,10.8046]
[1641722911961,1.92420326,138.93,138.87,10.8046]
[1641722912763,1.92420326,138.92,138.87,10.8046]
[1641722913364,1.92420326,138.93,138.87,10.8046]
[1641722913564,1.92420326,138.93,138.88,33.3855]
[1641722913965,12.72800326,138.93,138.88,33.3855]
[1641722914167,12.72800326,138.93,138.88,22.5822]
[1641722914968,15.72930326,138.92,138.88,22.5822]
[1641722915167,12.72930326,138.92,138.88,22.5822]
[1641722915368,3.0,138.91,138.88,22.5822]
[1641722916169,6.06439994,138.9,138.83,23.9948]
[1641722916770,31.58673308,138.89,138.83,23.9948]
[1641722916971,33.51093634,138.89,138.83,23.9948]
[1641722917771,44.31803634,138.89,138.84,10.8068]
[1641722918672,3.0,138.88,138.84,10.8068]
[1641722919878,1.92420326,138.89,138.84,10.8068]
[1641722920073,1.92420326,138.89,138.84,34.1421]
[1641722920774,1.92420326,138.89,138.87,10.8029]
[1641722920974,1.92420326,138.91,138.85,5.69130123]
[1641722921978,1.92420326,138.91,138.87,10.8042]
[1641722922379,3.0,138.9,138.84,23.3353]
[1641722923077,3.0,138.91,138.84,23.3353]
[1641722923278,3.0,138.91,138.86,10.8045]
[1641722923476,0.25,138.9,138.86,10.8045]
[1641722923677,3.0,138.91,138.86,10.8045]
[1641722924680,4.92420326,138.91,138.86,10.8045]
[1641722925080,0.25,138.9,138.86,10.8045]
[1641722926579,0.25,138.9,138.84,23.3353]
[1641722926982,29.24780604,138.92,138.84,23.3353]
[1641722927181,0.25,138.91,138.84,23.3353]
[1641722927380,5.17420326,138.91,138.84,23.3353]
[1641722929319,5.17420326,138.91,138.81,74.90656215]
[1641722929486,1.92420326,138.9,138.82,23.5625]
[1641722929884,10.8108,138.86,138.82,23.5625]
[1641722930085,23.65306185,138.85,138.82,23.5625]
[1641722930886,0.25,138.84,138.82,23.5625]
[1641722931288,0.25,138.84,138.81,83.6841]
[1641722931888,0.25,138.84,138.81,10.8089]
[1641722932689,6.06439994,138.83,138.81,10.8089]
[1641722933095,0.25,138.84,138.81,10.8089]
[1641722933596,0.25,138.84,138.8,10.8099]
[1641722934994,1.92420326,138.89,138.8,10.8099]
[1641722935193,1.92420326,138.89,138.85,10.8059]
[1641722935796,1.92420326,138.9,138.85,10.8059]
[1641722935996,29.278453,138.89,138.82,79.689]
[1641722936196,29.278453,138.89,138.83,10.8072]
[1641722936822,29.278453,138.89,138.83,33.434]
[1641722937024,40.085553,138.89,138.83,22.6268]
[1641722937228,3.0,138.88,138.83,22.6268]
[1641722938224,13.8082,138.88,138.83,22.6268]
[1641722945931,13.8082,138.88,138.78,1.0262324]
[1641722946130,10.38,138.87,138.78,1.0262324]
[1641722946331,10.8131,138.83,138.78,1.0262324]
[1641722946935,28.2285939,138.82,138.78,1.0262324]
[1641722947333,10.8136,138.81,138.78,1.0262324]
[1641722947537,3.0,138.8,138.78,1.0262324]
[1641722948434,10.814,138.8,138.78,1.0262324]
[1641722948835,3.0,138.79,138.78,1.0262324]
[1641722949335,9.06439994,138.79,138.78,1.0262324]
[1641722949737,19.88059994,138.79,138.78,1.0262324]
[1641722950439,19.88059994,138.79,138.78,27.0262324]
[1641722950638,19.88059994,138.79,138.78,1.0262324]
[1641722955045,9.06439994,138.79,138.78,1.0262324]
[1641722955248,9.06439994,138.79,138.78,40.0262324]
[1641722956973,9.06439994,138.79,138.78,50.8376324]
[1641722957175,9.06439994,138.79,138.78,40.0262324]
[1641722957573,109.6629,138.83,138.78,40.0262324]
[1641722957781,3.0,138.82,138.78,40.0262324]
[1641722957974,3.0,138.82,138.78,50.8377324]
[1641722958173,1.92420326,138.86,138.78,50.8377324]
[1641722958374,27.69296266,138.86,138.78,74.9056324]
[1641722958776,3.0,138.85,138.78,74.9056324]
[1641722958974,25.7687594,138.86,138.78,74.9056324]
[1641722959877,36.5780594,138.86,138.78,74.9056324]
[1641722960075,3.0,138.85,138.78,74.9056324]
[1641722960977,13.8101,138.85,138.78,64.0941324]
[1641722961177,13.8101,138.85,138.78,40.0262324]
[1641722961376,24.1901,138.85,138.78,40.0262324]
[1641722961577,24.1901,138.85,138.78,39.6262324]
[1641722962178,25.84355313,138.85,138.78,39.6262324]
[1641722962376,25.84355313,138.85,138.78,0.6262324]
[1641722962578,10.8146,138.81,138.78,0.6262324]
[1641722962779,6.06439994,138.8,138.78,0.6262324]
[1641722962978,8.43816754,138.8,138.71,95.1699]
[1641722963579,30.02494502,138.79,138.71,95.1699]
[1641722963981,10.8167,138.77,138.71,95.1699]
[1641722964283,10.8167,138.77,138.71,23.0041]
[1641722964681,3.0,138.76,138.71,23.0041]
[1641722964883,3.0,138.78,138.71,23.0041]
[1641722965781,13.816,138.78,138.71,33.821]
[1641722972189,13.816,138.78,138.7,10.8177]
[1641722972588,13.816,138.78,138.77,0.2621997]
[1641722972792,19.25416754,138.78,138.77,0.2621997]
[1641722978895,5.43816754,138.78,138.77,0.2621997]
[1641722979094,5.43816754,138.78,138.77,46.0731997]
[1641722979295,30.02494502,138.79,138.77,46.69943209]
[1641722980296,3.03219997,138.78,138.77,46.0731997]
[1641722981295,1.92420326,138.82,138.77,46.0731997]
[1641722981494,3.0,138.81,138.77,46.0731997]
[1641722983403,25.85748937,138.82,138.77,46.0731997]
[1641722984007,3.0,138.81,138.77,46.0731997]
[1641722984406,3.0,138.81,138.77,0.2621997]
[1641722985208,10.8158,138.79,138.77,0.2621997]
[1641722985611,3.0,138.78,138.77,0.2621997]
[1641722985812,8.43816754,138.78,138.77,0.2621997]
[1641722986108,8.43816754,138.78,138.71,24.0464]
[1641722986613,8.43816754,138.78,138.7,74.0374]
[1641722987010,8.43816754,138.78,138.69,24.8982]
[1641722987411,19.25686754,138.78,138.69,24.8982]
[1641722988219,21.1810708,138.78,138.69,24.8982]
[1641722988916,21.1810708,138.78,138.69,35.7166]
[1641722989112,21.1810708,138.78,138.69,24.8982]
[1641722989340,10.38,138.77,138.62,10.38]
[1641722989541,10.8242,138.7,138.6,14.44660428]
[1641722989742,18.2592,138.7,138.61,0.07]
[1641722989942,3.0,138.69,138.61,2.10136215]
[1641722990143,28.78865151,138.68,138.61,2.10136215]
[1641722990541,3.0,138.67,138.61,2.10136215]
[1641722991343,8.527,138.67,138.61,2.10136215]
[1641722991544,10.8251,138.66,138.61,0.07]
[1641722991945,3.0,138.65,138.61,0.07]
[1641722992544,10.828,138.63,138.61,0.07]
[1641722992744,36.0954,138.65,138.61,0.07]
[1641722992944,3.0,138.62,138.61,0.07]
[1641722993146,8.43816754,138.62,138.61,0.07]
[1641722993545,39.67012711,138.62,138.61,0.07]
[1641722993747,50.49962711,138.62,138.61,0.07]
[1641722994745,39.67012711,138.62,138.61,38.07]
[1641722995948,36.67012711,138.62,138.61,38.07]
[1641722996148,39.67012711,138.62,138.61,38.07]
[1641722997147,50.49852711,138.62,138.61,38.07]
[1641722997748,39.67012711,138.62,138.61,38.07]
[1641722997948,34.23195957,138.62,138.61,38.69623239]
[1641722998152,10.8271,138.64,138.62,3.0]
[1641722999151,26.98332304,138.63,138.62,3.0]
[1641722999551,37.81312304,138.63,138.62,3.0]
[1641722999752,37.81312304,138.63,138.62,36.0]
[1641723000454,40.84532301,138.63,138.62,36.0]
[1641723001155,40.84532301,138.63,138.62,3.0]
[1641723001553,43.25129058,138.63,138.62,3.0]
[1641723003157,43.25129058,138.63,138.58,0.18040667]
[1641723003854,43.25129058,138.63,138.53,0.03791311]
[1641723003855,61.18829058,138.63,138.53,0.03791311]
[1641723004055,62.84174371,138.63,138.53,0.03791311]
[1641723005555,98.88174371,138.63,138.53,0.03791311]
[1641723006959,228.66174371,138.63,138.53,0.03791311]
[1641723007160,129.78,138.61,138.51,510.0976]
[1641723007359,30.34549355,138.56,138.51,510.0976]
[1641723007559,40.72549355,138.56,138.51,510.0976]
[1641723007758,40.72549355,138.56,138.51,434.6193]
[1641723007759,34.20234213,138.55,138.51,434.6193]
[1641723007959,10.38,138.54,138.51,434.6193]
[1641723008184,12.03345313,138.54,138.51,417.8777]
[1641723008383,13.8388,138.53,138.51,323.1777]
[1641723008582,10.38,138.52,138.51,323.1777]
[1641723008986,13.38,138.52,138.51,323.1777]
[1641723009387,36.0,138.5,138.36,0.82246643]
[1641723009588,129.78,138.47,138.33,0.05714286]
[1641723009787,129.78,138.45,138.33,0.05714286]
[1641723009987,129.78,138.43,138.33,0.05714286]
[1641723010187,10.38,138.42,138.31,1.57408281]
[1641723010389,10.8489,138.37,138.31,1.57408281]
[1641723010591,21.2289,138.37,138.31,1.57408281]
[1641723010792,29.842114,138.36,138.31,1.57408281]
[1641723010989,10.38,138.35,138.29,0.36141931]
[1641723011191,31.846586,138.34,138.29,0.36141931]
[1641723011400,10.8523,138.32,138.21,1.51513114]
[1641723011589,13.38,138.31,138.21,1.51513114]
[1641723011991,13.38,138.31,138.2,255.40098269]
[1641723012193,10.38,138.31,138.21,3.0]
[1641723012392,10.38,138.31,138.21,1.0]
[1641723012690,6.38,138.31,138.2,109.59488269]
[1641723013094,260.20442257,138.37,138.25,10.8514]
[1641723013291,10.38,138.36,138.26,27.50273688]
[1641723013492,13.38,138.36,138.26,27.75273688]
[1641723014093,13.38,138.36,138.3,10.8476]
[1641723014293,10.38,138.36,138.26,63.91223688]
[1641723014493,10.38,138.36,138.26,63.66223688]
[1641723014693,10.38,138.36,138.27,0.25]
[1641723015397,8.32,138.36,138.3,10.848]
[1641723015600,3.0,138.35,138.3,34.07574088]
[1641723016008,8.32,138.36,138.3,34.07574088]
[1641723016613,8.32,138.36,138.3,10.848]
[1641723017315,3.0,138.35,138.3,10.848]
[1641723017916,165.9425,138.4,138.31,22.73186478]
[1641723018116,10.38,138.39,138.31,22.98186478]
[1641723018317,8.38,138.39,138.31,22.73186478]
[1641723019117,8.38,138.39,138.33,10.8458]
[1641723020147,10.38,138.41,138.37,10.8422]
[1641723020543,10.38,138.45,138.37,10.8422]
[1641723020950,10.38,138.45,138.37,38.96014726]
[1641723021346,73.2172,138.51,138.37,40.61360039]
[1641723021551,10.38,138.5,138.38,0.25]
[1641723021847,10.38,138.5,138.42,10.8389]
[1641723022246,10.8402,138.47,138.37,28.11794726]
[1641723023051,10.8402,138.47,138.34,49.65825313]
[1641723023250,10.8402,138.47,138.34,58.3848]
[1641723023251,21.2202,138.47,138.34,58.3848]
[1641723024052,21.2202,138.47,138.34,48.0048]
[1641723024350,30.950108,138.46,138.3,79.12725313]
[1641723024553,10.8474,138.38,138.31,47.8103]
[1641723024753,10.38,138.43,138.31,47.8103]
[1641723025352,10.38,138.43,138.31,58.658]
[1641723025552,129.78,138.5,138.31,58.658]
[1641723025553,10.8319,138.56,138.46,7.05014086]